fUSD/lending_fUSD_20240523
["ID","MTS","AMOUNT","RATE_DAILY","PERIOD"]
[327787304,1716479446495,-726.7001153,0.00023661,2]
[327787305,1716479446507,-701.53541105,0.00023661,2]
[327787306,1716479446545,-766.24657314,0.00023661,2]
[327787307,1716479446557,-740.61086909,0.00023661,2]
[327787308,1716479446621,-718.76628467,0.00023661,2]
[327787309,1716479446633,-1241.41442223,0.00023661,2]
[327787310,1716479446644,-7807.21778536,0.00023661,2]
[327787311,1716479446654,-163.18099655,0.00023686,2]
[327787312,1716479446664,-151.71,0.00023686,2]
[327787313,1716479446674,-346.93307853,0.00023694,2]
[327787314,1716479446684,-3880.70724069,0.00023694,2]
[327787315,1716479446693,-307.68526441,0.00023694,2]
[327787316,1716479446702,-731.13604982,0.00023694,2]
[327787317,1716479446712,-5079.69634499,0.00023695,2]
[327787318,1716479446722,-804.89,0.00023695,2]
[327787319,1716479446732,-500.0,0.00023695,2]
[327787320,1716479446741,-500.0,0.00023695,2]
[327787321,1716479446751,-500.0,0.00023695,2]
[327787322,1716479446760,-500.0,0.00023695,2]
[327787323,1716479446770,-500.0,0.00023695,2]
[327787324,1716479446779,-500.0,0.00023695,2]
[327787325,1716479446788,-500.0,0.00023695,2]
[327787326,1716479446797,-679.57,0.00023695,2]
[327787327,1716479446806,-613.27,0.00023695,2]
[327787328,1716479446816,-569.64,0.00023695,2]
[327787329,1716479446826,-500.0,0.00023695,2]
[327787330,1716479446835,-500.0,0.00023695,2]
[327787331,1716479446845,-500.0,0.00023695,2]
[327787332,1716479446854,-500.0,0.00023695,2]
[327787333,1716479446864,-500.0,0.00023695,2]
[327787334,1716479446874,-643.3,0.00023695,2]
[327787335,1716479446883,-644.41,0.00023695,2]
[327787336,1716479446892,-500.0,0.00023695,2]
[327787337,1716479446902,-500.0,0.00023695,2]
[327787338,1716479446911,-500.0,0.00023695,2]
[327787339,1716479446920,-500.0,0.00023695,2]
[327787340,1716479446929,-500.0,0.00023695,2]
[327787341,1716479446939,-980.02,0.00023695,2]
[327787342,1716479446948,-500.0,0.00023695,2]
[327787343,1716479446957,-500.0,0.00023695,2]
[327787344,1716479446966,-514.32,0.00023695,2]
[327787345,1716479446975,-514.32,0.00023695,3]
[327787346,1716479446986,-500.0,0.00023695,2]
[327787347,1716479446995,-500.0,0.00023695,2]
[327787348,1716479447004,-500.0,0.00023695,2]
[327787349,1716479447014,-500.0,0.00023695,2]
[327787350,1716479447023,-500.0,0.00023695,2]
[327787351,1716479447032,-500.0,0.00023695,2]
[327787352,1716479447042,-500.0,0.00023695,2]
[327787353,1716479447051,-500.0,0.00023695,2]
[327787354,1716479447060,-500.0,0.00023695,2]
[327787355,1716479447070,-162.48,0.00023695,2]
[327787356,1716479447079,-500.0,0.00023695,2]
[327787357,1716479447088,-500.0,0.00023695,2]
[327787358,1716479447098,-313.61325608,0.00023695,2]
[327787359,1716479447107,-500.0,0.00023695,2]
[327787360,1716479447116,-853.5,0.00023695,2]
[327787361,1716479447125,-500.0,0.00023695,2]
[327787362,1716479447134,-500.0,0.00023695,2]
[327787363,1716479447144,-500.0,0.00023695,2]
[327787364,1716479447153,-329.48990793,0.00023695,2]
[327787365,1716479447686,-2100.0,0.00023421,2]
[327787366,1716479447695,-170.51009207,0.00023695,2]
[327787367,1716479447705,-921.53,0.00023695,2]
[327787368,1716479447714,-500.0,0.00023695,2]
[327787369,1716479447723,-500.0,0.00023695,2]
[327787370,1716479447733,-292.87565328,0.00023695,2]
[327787371,1716479447744,-509.63434672,0.00023695,2]
[327787372,1716479447754,-1345.13,0.00023695,2]
[327787373,1716479447764,-500.0,0.00023695,2]
[327787374,1716479447774,-500.0,0.00023695,2]
[327787375,1716479447783,-490.28565328,0.00023695,2]
[327787376,1716479447793,-1319.70824712,0.00023695,2]
[327787377,1716479447804,-866.5160996,0.00023695,2]
[327787378,1716479447813,-2546.0839004,0.00023695,2]
[327787379,1716479447825,-177.8060996,0.00023695,2]
[327787380,1716479447834,-604.32157916,0.00023695,2]
[327787381,1716479447850,-211.32842084,0.00023695,2]
[327787382,1716479447860,-627.21,0.00023695,2]
[327787383,1716479447868,-500.0,0.00023695,2]
[327787384,1716479447877,-500.0,0.00023695,2]
[327787385,1716479447886,-1184.67,0.00023695,2]
[327787386,1716479447895,-500.0,0.00023695,2]
[327787387,1716479447904,-571.0,0.00023695,2]
[327787388,1716479447913,-500.0,0.00023695,2]
[327787389,1716479447922,-562.23,0.00023695,2]
[327787390,1716479447931,-500.0,0.00023695,2]
[327787391,1716479447941,-500.0,0.00023695,2]
[327787392,1716479447950,-500.0,0.00023695,2]
[327787393,1716479447959,-623.48,0.00023695,2]
[327787394,1716479447969,-500.0,0.00023695,2]
[327787395,1716479447978,-500.0,0.00023695,2]
[327787396,1716479447988,-500.0,0.00023695,2]
[327787397,1716479447998,-500.0,0.00023695,2]
[327787398,1716479448007,-500.0,0.00023695,2]
[327787399,1716479448016,-500.0,0.00023695,2]
[327787400,1716479448026,-500.0,0.00023695,2]
[327787401,1716479448036,-500.0,0.00023695,2]
[327787402,1716479448045,-7743.33,0.00023695,2]
[327787403,1716479448054,-500.0,0.00023695,2]
[327787404,1716479448063,-500.0,0.00023695,2]
[327787405,1716479448072,-500.0,0.00023695,2]
[327787406,1716479448081,-500.0,0.00023695,2]
[327787407,1716479448091,-500.0,0.00023695,2]
[327787408,1716479448100,-500.0,0.00023695,2]
[327787409,1716479448110,-776.26,0.00023695,2]
[327787410,1716479448120,-1367.98,0.00023695,2]
[327787411,1716479448129,-500.0,0.00023695,2]
[327787412,1716479448138,-500.0,0.00023695,2]
[327787413,1716479448147,-500.0,0.00023695,2]
[327787414,1716479448156,-500.0,0.00023695,2]
[327787415,1716479448165,-500.0,0.00023695,2]
[327787416,1716479448174,-500.0,0.00023695,2]
[327787417,1716479448183,-500.0,0.00023695,2]
[327787418,1716479448193,-1691.09,0.00023695,2]
[327787419,1716479448202,-500.0,0.00023695,2]
[327787420,1716479448211,-500.0,0.00023695,2]
[327787421,1716479448220,-757.3,0.00023695,2]
[327787422,1716479448230,-500.0,0.00023695,2]
[327787423,1716479448239,-206003.2712,0.00023696,2]
[327787424,1716479448248,-39182.283,0.00023696,2]
[327787425,1716479448257,-500.0,0.00023696,2]
[327787426,1716479448266,-1000.0,0.00023696,2]
[327787427,1716479448276,-70230.10149006,0.00023696,2]
[327787428,1716479448288,-727.91425608,0.00023696,2]
[327787429,1716479448299,-2851.30910176,0.00023696,2]
[327787430,1716479448313,-356.09699987,0.00023696,2]
[327787431,1716479448324,-725.22883847,0.00023696,2]
[327787432,1716479448336,-25109.34931376,0.00023696,2]
[327787433,1716479448345,-3258.83330099,0.000237,2]
[327787434,1716479448357,-1166.89218097,0.000237,2]
[327787435,1716479448366,-452.48154197,0.00023703,2]
[327787436,1716479448375,-200.0,0.00023725,2]
[327787437,1716479448384,-150.0,0.00023728,2]
[327787438,1716479448396,-150.0,0.00023728,2]
[327787439,1716479448406,-150.0,0.00023733,2]
[327787440,1716479448415,-150.0,0.00023735,2]
[327787441,1716479448424,-150.0,0.00023735,2]
[327787442,1716479448433,-150.0,0.00023742,2]
[327787443,1716479448442,-150.0,0.00023742,2]
[327787444,1716479448451,-150.0,0.00023744,2]
[327787445,1716479448461,-150.0,0.00023744,2]
[327787446,1716479448470,-150.0,0.00023748,2]
[327787447,1716479448480,-150.0,0.00023751,2]
[327787448,1716479448489,-150.0,0.00023753,2]
[327787449,1716479448498,-150.0,0.00023753,2]
[327787450,1716479448508,-150.0,0.00023755,2]
[327787451,1716479448517,-150.0,0.00023755,2]
[327787452,1716479448526,-273.14063394,0.00023759,2]
[327787453,1716479448535,-150.0,0.00023759,2]
[327787454,1716479448544,-11622.54345875,0.0002376,2]
[327787455,1716479448554,-150.0,0.0002376,2]
[327787456,1716479448563,-150.0,0.00023761,2]
[327787457,1716479448572,-150.0,0.00023762,2]
[327787458,1716479448582,-150.0,0.00023769,2]
[327787459,1716479448591,-150.0,0.00023772,2]
[327787460,1716479448601,-150.0,0.00023774,2]
[327787461,1716479448610,-150.0,0.00023776,2]
[327787462,1716479448620,-150.0,0.00023778,2]
[327787463,1716479448629,-150.0,0.00023778,2]
[327787464,1716479448639,-150.0,0.00023779,2]
[327787465,1716479448648,-150.0,0.00023781,2]
[327787466,1716479448658,-150.0,0.00023783,2]
[327787467,1716479448667,-150.0,0.00023787,2]
[327787468,1716479448677,-150.0,0.00023791,2]
[327787469,1716479448687,-300.0,0.00023795,2]
[327787470,1716479448696,-150.0,0.00023796,2]
[327787471,1716479448706,-500.0,0.00023799,2]
[327787472,1716479448716,-1148.79,0.00023799,2]
[327787473,1716479448725,-500.0,0.00023799,2]
[327787474,1716479448735,-500.0,0.00023799,2]
[327787475,1716479448745,-1130.61,0.00023799,2]
[327787476,1716479448755,-500.0,0.00023799,2]
[327787477,1716479448764,-594.62,0.00023799,2]
[327787478,1716479448774,-500.0,0.00023799,2]
[327787479,1716479448784,-500.0,0.00023799,2]
[327787480,1716479448793,-500.0,0.00023799,2]
[327787481,1716479448802,-997.82,0.00023799,2]
[327787482,1716479448812,-500.0,0.00023799,2]
[327787483,1716479448821,-522.59960833,0.00023799,2]
[327787484,1716479448830,-500.0,0.00023799,2]
[327787485,1716479448839,-500.0,0.00023799,2]
[327787486,1716479448848,-500.0,0.00023799,2]
[327787487,1716479448858,-500.0,0.00023799,2]
[327787488,1716479448867,-500.0,0.00023799,2]
[327787489,1716479448875,-500.0,0.00023799,2]
[327787490,1716479448884,-514.19,0.00023799,2]
[327787491,1716479448894,-500.0,0.00023799,2]
[327787492,1716479448903,-410.69179426,0.00023799,2]
[327787493,1716479448912,-500.0,0.00023799,2]
[327787494,1716479448922,-500.0,0.00023799,2]
[327787495,1716479448931,-500.0,0.00023799,2]
[327787496,1716479448941,-500.0,0.00023799,2]
[327787497,1716479448950,-500.0,0.00023799,2]
[327787498,1716479448960,-69.14028179,0.00023799,2]
[327787499,1716479448972,-265.05503828,0.00023799,2]
[327787500,1716479449840,-165.80467993,0.00023799,2]
[327787501,1716479449849,-340.18318596,0.00023799,2]
[327787504,1716479502939,3833.41356601,0.00017259,2]
[327787506,1716479516130,541.26136792,0.00017259,2]
[327787516,1716479759655,541.26136792,0.00019725,2]
[327787530,1716480439603,206.38,0.00013973,2]
[327787543,1716480631387,-206.38,0.00020447,2]
[327787544,1716480631398,-127.62,0.00020469,2]
[327787545,1716480631447,-544.02,0.00020469,2]
[327787546,1716480631565,-220.0,0.00020469,2]
[327787547,1716480631575,-2500.0,0.000215,2]
[327787548,1716480631584,-1500.0,0.00022,2]
[327787549,1716480631594,-194.08274216,0.00022001,2]
[327787550,1716480631604,-175.99,0.00022033,2]
[327787551,1716480631614,-800.0,0.00022041,2]
[327787552,1716480631624,-499.99,0.00022041,2]
[327787553,1716480631633,-1132.76,0.0002208,2]
[327787554,1716480631643,-336.92,0.000221,2]
[327787555,1716480631653,-153.3265387,0.0002216,2]
[327787556,1716480631662,-151.56768367,0.00022199,2]
[327787557,1716480631672,-721.0,0.000222,5]
[327787558,1716480631681,-18.84303547,0.00022314,2]
[327787559,1716480631694,-366.06696453,0.00022314,2]
[327787560,1716480631705,-53.93303547,0.00022321,2]
[327787561,1716480631728,-140.14970669,0.00022321,2]
[327787563,1716480631739,-250.0,0.00022354,2]
[327787565,1716480631750,-3197.82,0.00022358,2]
[327787566,1716480631760,-2000.0,0.00022373,2]
[327787568,1716480631770,-151.31470383,0.00022433,2]
[327787570,1716480631780,-1500.0,0.000225,2]
[327787572,1716480631792,-151.31470383,0.00022525,2]
[327787574,1716480631803,-306.41363932,0.00022732,2]
[327787577,1716480631820,-585.22636068,0.00022732,2]
[327787579,1716480631830,-30.02805324,0.00022788,2]
[327787580,1716480631841,-169.97194676,0.00022788,2]
[327787581,1716480631850,-163.03600079,0.00022791,2]
[327787592,1716480637664,-9.24399921,0.00022791,2]
[327787593,1716480637674,-194.08274216,0.00022909,2]
[327787594,1716480637689,-194.08274216,0.00022924,2]
[327787595,1716480637699,-194.08274216,0.0002295,2]
[327787596,1716480637712,-1016.80777431,0.00023,2]
[327787597,1716480637725,-382.64,0.00023,2]
[327787598,1716480637737,-100.55222569,0.00023,2]
[327787600,1716480637747,-654.29,0.00023008,2]
[327787602,1716480637756,-309.8,0.00023022,2]
[327787603,1716480637766,-163.58,0.00023022,2]
[327787605,1716480637775,-163.58,0.00023022,2]
[327787607,1716480637785,-85.57442364,0.00023022,2]
[327787609,1716480637798,-78.00557636,0.00023022,2]
[327787611,1716480637811,-163.58,0.00023022,2]
[327787612,1716480637820,-655.31,0.00023022,2]
[327787614,1716480637829,-150.0,0.00023022,2]
[327787616,1716480637838,-194.08274216,0.00023051,2]
[327787618,1716480637847,-151.56768367,0.00023113,2]
[327787620,1716480637856,-153.55433201,0.00023197,2]
[327787621,1716480637866,-1000.0,0.00023267,2]
[327787623,1716480637875,-500.0,0.00023268,2]
[327787624,1716480637884,-500.0,0.00023268,2]
[327787625,1716480637893,-500.0,0.00023268,2]
[327787626,1716480637902,-500.0,0.00023268,2]
[327787627,1716480637912,-500.0,0.00023268,2]
[327787628,1716480637922,-500.0,0.00023268,2]
[327787629,1716480637931,-500.0,0.00023268,2]
[327787630,1716480637941,-500.0,0.00023268,2]
[327787631,1716480637950,-500.0,0.00023268,2]
[327787632,1716480637959,-500.0,0.00023268,2]
[327787633,1716480637969,-500.0,0.00023268,2]
[327787634,1716480637978,-500.0,0.00023268,2]
[327787635,1716480637988,-500.0,0.00023268,2]
[327787636,1716480637997,-500.0,0.00023268,2]
[327787637,1716480638006,-500.0,0.00023268,2]
[327787638,1716480638015,-500.0,0.00023268,2]
[327787639,1716480638025,-699.04,0.00023268,2]
[327787640,1716480638034,-500.0,0.00023268,2]
[327787641,1716480638043,-500.0,0.00023268,2]
[327787642,1716480638052,-500.0,0.00023268,2]
[327787643,1716480638062,-500.0,0.00023268,2]
[327787644,1716480638071,-500.0,0.00023268,2]
[327787645,1716480638080,-281.3728627,0.00023268,2]
[327787646,1716480638096,-218.6271373,0.00023268,2]
[327787647,1716480638106,-500.0,0.00023268,2]
[327787648,1716480638115,-500.0,0.00023268,2]
[327787649,1716480638124,-144.3236827,0.00023268,2]
[327787650,1716480638140,-1606.3463173,0.00023268,2]
[327787651,1716480638150,-500.0,0.00023268,2]
[327787652,1716480638390,-500.0,0.00023268,2]
[327787653,1716480638401,-500.0,0.00023268,2]
[327787654,1716480638410,-500.0,0.00023268,2]
[327787655,1716480638420,-1024.0,0.00023268,2]
[327787656,1716480638429,-500.0,0.00023268,2]
[327787657,1716480638438,-2745.96,0.00023268,2]
[327787658,1716480638448,-116.1416627,0.00023331,2]
[327787661,1716480639966,-150.99,0.00023,2]
[327787662,1716480639978,-37.41266931,0.00023331,2]
[327787663,1716480639988,-153.55433201,0.00023353,2]
[327787664,1716480639998,-151.56768367,0.00023397,2]
[327787665,1716480640008,-1500.0,0.000235,2]
[327787666,1716480640017,-151.56768367,0.00023528,2]
[327787667,1716480640027,-500.0,0.00023542,3]
[327787668,1716480640036,-500.0,0.00023542,3]
[327787669,1716480640045,-500.0,0.00023542,3]
[327787670,1716480640055,-500.0,0.00023542,3]
[327787671,1716480640064,-500.0,0.00023542,3]
[327787672,1716480640074,-500.0,0.00023542,3]
[327787673,1716480640084,-500.0,0.00023542,3]
[327787674,1716480640093,-500.0,0.00023542,3]
[327787675,1716480640103,-500.0,0.00023542,3]
[327787676,1716480640112,-500.0,0.00023542,2]
[327787677,1716480640121,-500.0,0.00023542,2]
[327787678,1716480640131,-500.0,0.00023542,2]
[327787679,1716480640140,-500.0,0.00023542,2]
[327787680,1716480640150,-500.0,0.00023542,2]
[327787681,1716480640159,-500.0,0.00023542,2]
[327787682,1716480640168,-699.04,0.00023542,2]
[327787683,1716480640178,-500.0,0.00023542,2]
[327787684,1716480640187,-500.0,0.00023542,2]
[327787685,1716480640196,-500.0,0.00023542,2]
[327787686,1716480640206,-500.0,0.00023542,2]
[327787687,1716480640215,-500.0,0.00023542,2]
[327787688,1716480640226,-500.0,0.00023542,2]
[327787689,1716480640236,-500.0,0.00023542,2]
[327787690,1716480640246,-1750.67,0.00023542,2]
[327787691,1716480640255,-500.0,0.00023542,2]
[327787692,1716480640265,-500.0,0.00023542,2]
[327787693,1716480640275,-642.93415968,0.00023542,2]
[327787694,1716480640285,-500.0,0.00023542,2]
[327787695,1716480640294,-1024.0,0.00023542,2]
[327787696,1716480640304,-500.0,0.00023542,2]
[327787697,1716480640313,-2745.96,0.00023542,2]
[327787698,1716480640323,-267.88028053,0.00023629,2]
[327787699,1716480640332,-6042.31219881,0.00023629,2]
[327787700,1716480640342,-1000.0,0.00023633,2]
[327787701,1716480640352,-46267.13448668,0.00023654,2]
[327787702,1716480640361,-500.0,0.00023656,2]
[327787703,1716480640371,-500.0,0.00023656,2]
[327787704,1716480640380,-500.0,0.00023656,2]
[327787705,1716480640389,-334.24572293,0.00023656,2]
[327787707,1716480640399,-534.37,0.00023656,2]
[327787708,1716480640409,-500.0,0.00023656,2]
[327787709,1716480640418,-494.13116692,0.00023656,2]
[327787710,1716480640427,-500.0,0.00023656,2]
[327787711,1716480640437,-500.0,0.00023656,2]
[327787712,1716480640446,-500.0,0.00023656,2]
[327787713,1716480640456,-500.0,0.00023656,2]
[327787714,1716480640465,-500.0,0.00023656,2]
[327787715,1716480640477,-892.74,0.00023656,2]
[327787716,1716480640486,-500.0,0.00023656,2]
[327787717,1716480640496,-500.0,0.00023656,2]
[327787718,1716480640506,-500.0,0.00023656,2]
[327787719,1716480640515,-500.0,0.00023656,2]
[327787720,1716480640524,-231.38005997,0.00023656,2]
[327787721,1716480640534,-500.0,0.00023656,2]
[327787722,1716480640543,-500.0,0.00023656,2]
[327787723,1716480640552,-500.0,0.00023656,2]
[327787724,1716480640561,-500.0,0.00023656,2]
[327787725,1716480640571,-923.23,0.00023656,2]
[327787726,1716480640581,-500.0,0.00023656,2]
[327787727,1716480640591,-500.0,0.00023656,2]
[327787728,1716480640600,-921.74,0.00023656,2]
[327787729,1716480640609,-500.0,0.00023656,2]
[327787730,1716480640618,-500.0,0.00023656,2]
[327787731,1716480640628,-500.0,0.00023656,2]
[327787732,1716480640637,-500.0,0.00023656,2]
[327787733,1716480640647,-500.0,0.00023656,2]
[327787734,1716480640656,-500.0,0.00023656,2]
[327787735,1716480640666,-267.88028052,0.00023684,2]
[327787736,1716480640675,-203.69668189,0.00023695,21]
[327787737,1716480640685,-448.61539597,0.00023695,2]
[327787738,1716480640694,-1000.0,0.00023695,2]
[327787739,1716480640703,-878.0,0.00023695,2]
[327787740,1716480640716,-1593.76181347,0.000237,2]
[327787741,1716480640726,-194.08274216,0.00023715,2]
[327787742,1716480640735,-150.0,0.00023729,2]
[327787743,1716480640745,-150.0,0.00023729,2]
[327787744,1716480640755,-150.0,0.0002373,2]
[327787745,1716480640765,-150.0,0.00023733,2]
[327787746,1716480640774,-150.0,0.00023735,2]
[327787747,1716480640784,-267.88028052,0.0002374,2]
[327787748,1716480640794,-226.24077102,0.00023741,2]
[327787749,1716480640804,-150.0,0.00023742,2]
[327787750,1716480640813,-962.2061106,0.00023744,2]
[327787751,1716480640823,-150.0,0.00023747,2]
[327787753,1716480640832,-150.0,0.00023748,2]
[327787755,1716480640841,-150.0,0.00023754,2]
[327787757,1716480640851,-150.0,0.00023755,2]
[327787759,1716480640860,-150.0,0.00023759,2]
[327787761,1716480640869,-11622.54345875,0.0002376,2]
[327787763,1716480640879,-150.0,0.00023767,2]
[327787765,1716480640889,-150.0,0.0002377,2]
[327787767,1716480640898,-150.0,0.0002377,2]
[327787769,1716480640908,-150.0,0.00023772,2]
[327787771,1716480640917,-208.00558033,0.00023778,2]
[327787773,1716480640926,-150.0,0.00023782,2]
[327787775,1716480640935,-962.20611058,0.00023783,2]
[327787777,1716480640944,-150.0,0.00023791,2]
[327787779,1716480640953,-267.88028052,0.00023795,2]
[327787781,1716480640962,-150.0,0.00023796,2]
[327787783,1716480640974,-500.0,0.00023797,2]
[327787785,1716480640984,-500.0,0.00023797,2]
[327787787,1716480640993,-6703.55,0.00023797,2]
[327787789,1716480641003,-500.0,0.00023797,2]
[327787791,1716480641012,-500.0,0.00023797,2]
[327787793,1716480641021,-312.90003517,0.00023797,2]
[327787795,1716480641030,-1438.67,0.00023797,2]
[327787797,1716480641039,-500.0,0.00023797,2]
[327787799,1716480641048,-531.50035839,0.00023797,2]
[327787801,1716480641057,-500.0,0.00023797,2]
[327787803,1716480641067,-500.0,0.00023797,2]
[327787805,1716480641077,-500.0,0.00023797,2]
[327787807,1716480641086,-500.0,0.00023797,2]
[327787809,1716480641095,-500.0,0.00023797,2]
[327787811,1716480641104,-764.4,0.00023797,2]
[327787813,1716480641113,-500.0,0.00023797,2]
[327787815,1716480641123,-500.0,0.00023797,2]
[327787816,1716480641132,-500.0,0.00023797,2]
[327787819,1716480641141,-500.0,0.00023797,2]
[327787821,1716480641150,-874.07,0.00023797,2]
[327787823,1716480641159,-507.91558824,0.00023797,2]
[327787825,1716480641168,-500.0,0.00023797,2]
[327787827,1716480641177,-500.0,0.00023797,2]
[327787828,1716480641187,-723.04,0.00023797,2]
[327787829,1716480641195,-500.0,0.00023797,2]
[327787830,1716480641204,-571.31,0.00023797,2]
[327787831,1716480641213,-500.0,0.00023797,2]
[327787832,1716480641223,-1026.46,0.00023797,2]
[327787833,1716480641232,-500.0,0.00023797,2]
[327787834,1716480641243,-500.0,0.00023797,2]
[327787835,1716480641252,-500.0,0.00023797,2]
[327787836,1716480641261,-504.17,0.00023797,2]
[327787837,1716480641270,-544.6,0.00023797,2]
[327787838,1716480641279,-500.0,0.00023797,2]
[327787839,1716480641288,-1264.89,0.00023797,2]
[327787840,1716480641297,-500.0,0.00023797,2]
[327787841,1716480641307,-765.31,0.00023797,2]
[327787843,1716480641316,-272.76483385,0.00023797,2]
[327787845,1716480641325,-568.4,0.00023797,2]
[327787847,1716480641334,-569.3,0.00023797,2]
[327787848,1716480641344,-500.0,0.00023797,2]
[327787850,1716480641353,-667.87,0.00023797,2]
[327787852,1716480641362,-500.0,0.00023797,2]
[327787855,1716480641371,-500.0,0.00023797,2]
[327787856,1716480641381,-904.75,0.00023797,2]
[327787858,1716480641391,-1072.62,0.00023797,2]
[327787860,1716480641400,-773.99,0.00023797,2]
[327787862,1716480641408,-567.96,0.00023797,2]
[327787864,1716480641417,-1428.0,0.00023797,2]
[327787866,1716480641426,-556.88,0.00023797,2]
[327787868,1716480641435,-500.0,0.00023797,2]
[327787870,1716480641444,-500.0,0.00023797,2]
[327787872,1716480641454,-500.0,0.00023798,2]
[327787875,1716480641464,-500.0,0.00023798,2]
[327787877,1716480641477,-500.0,0.00023798,2]
[327787879,1716480641486,-500.0,0.00023798,2]
[327787881,1716480641496,-500.0,0.00023798,2]
[327787883,1716480641505,-771.35,0.00023798,2]
[327787885,1716480641514,-500.0,0.00023798,2]
[327787887,1716480641523,-500.0,0.00023798,2]
[327787888,1716480641532,-411.89950145,0.00023798,2]
[327787890,1716480641541,-500.0,0.00023798,2]
[327787892,1716480641550,-500.0,0.00023798,2]
[327787894,1716480641560,-500.0,0.00023798,2]
[327787896,1716480641569,-500.0,0.00023798,2]
[327787898,1716480641579,-500.0,0.00023798,2]
[327787900,1716480641590,-500.0,0.00023798,2]
[327787902,1716480641600,-2148.18177715,0.00023798,2]
[327787904,1716480641609,-500.0,0.00023798,2]
[327787906,1716480641619,-651.25,0.00023798,2]
[327787908,1716480641628,-587.72,0.00023798,2]
[327787910,1716480641637,-500.0,0.00023798,2]
[327787912,1716480641647,-545.91,0.00023798,2]
[327787914,1716480641656,-500.0,0.00023798,2]
[327787916,1716480641666,-500.0,0.00023798,2]
[327787918,1716480641675,-500.0,0.00023798,2]
[327787920,1716480641684,-301.1505253,0.00023798,2]
[327787922,1716480641695,-500.0,0.00023798,2]
[327787924,1716480641707,-500.0,0.00023798,2]
[327787926,1716480641722,-500.0,0.00023798,2]
[327787928,1716480641732,-616.5,0.00023798,2]
[327787931,1716480641741,-500.0,0.00023798,2]
[327787933,1716480641751,-500.0,0.00023798,2]
[327787935,1716480641762,-500.0,0.00023798,2]
[327787936,1716480641771,-500.0,0.00023798,2]
[327787938,1716480641780,-500.0,0.00023798,2]
[327787940,1716480641789,-500.0,0.00023798,2]
[327787942,1716480641798,-500.0,0.00023798,2]
[327787944,1716480641807,-939.19,0.00023798,2]
[327787946,1716480641816,-500.0,0.00023798,2]
[327787948,1716480641826,-592.77613393,0.00023798,2]
[327787950,1716480641835,-500.0,0.00023798,2]
[327787952,1716480641844,-500.0,0.00023798,2]
[327787953,1716480641853,-500.0,0.00023798,2]
[327787954,1716480641862,-500.0,0.00023798,2]
[327787955,1716480641871,-500.0,0.00023798,2]
[327787956,1716480641880,-500.0,0.00023798,2]
[327787957,1716480641890,-500.0,0.00023798,2]
[327787958,1716480641900,-500.0,0.00023798,2]
[327787959,1716480641909,-500.0,0.00023798,2]
[327787960,1716480641918,-500.0,0.00023798,2]
[327787961,1716480641928,-500.0,0.00023798,2]
[327787962,1716480641937,-500.0,0.00023798,2]
[327787963,1716480641947,-500.0,0.00023798,2]
[327787964,1716480641957,-500.0,0.00023798,2]
[327787965,1716480641966,-500.0,0.00023798,2]
[327787966,1716480641978,-500.0,0.00023798,2]